bitfinex-derivatives/quotes_ETHF0:USTF0_20260121
["timestamp","ask_amount","ask_price","bid_price","bid_amount"]
[1768962464521,0.31650489,2969.9,2968.8,2.40647873]
[1768962464824,0.31650489,2969.8,2968.8,2.40647873]
[1768962465021,0.31650489,2969.7,2968.8,2.40647873]
[1768962465219,0.16854,2970.0,2968.8,2.40647873]
[1768962465422,0.31652367,2969.9,2968.8,2.40647873]
[1768962465622,0.31652367,2969.8,2968.8,2.40647873]
[1768962465817,0.16854,2970.0,2968.9,0.42165715]
[1768962466027,0.31652196,2969.9,2968.9,0.42165715]
[1768962466325,0.31652196,2969.8,2968.9,0.42165715]
[1768962466530,0.16854,2970.0,2968.9,0.42165715]
[1768962466732,0.31652885,2969.9,2968.9,0.42165715]
[1768962466924,0.31652885,2969.8,2968.9,0.42165715]
[1768962467229,0.16854,2970.0,2968.9,0.42165715]
[1768962467419,0.31653635,2969.9,2968.9,0.42165715]
[1768962467618,0.31653635,2969.8,2968.9,0.42165715]
[1768962467930,0.16851,2970.5,2969.0,0.42165715]
[1768962468130,1.17547846,2970.4,2969.2,0.42165715]
[1768962468322,0.31655345,2970.3,2969.2,0.42165715]
[1768962468524,0.31655345,2970.2,2969.2,0.42165715]
[1768962468721,0.31655345,2970.1,2969.2,0.42165715]
[1768962468925,0.31655345,2970.0,2969.2,0.42165715]
[1768962469126,0.16853,2970.3,2969.2,0.42165715]
[1768962469329,0.31658301,2970.2,2969.2,0.42165715]
[1768962469636,0.48511301,2970.1,2968.9,2.40647873]
[1768962469832,0.31658301,2970.0,2968.8,2.82813588]
[1768962470037,0.16853,2970.1,2968.8,2.82813588]
[1768962470226,0.31656935,2970.0,2968.8,2.82813588]
[1768962470428,0.31656935,2969.9,2968.8,2.82813588]
[1768962470636,0.16853,2970.1,2968.8,2.82813588]
[1768962470841,0.31660256,2970.0,2968.8,2.82813588]
[1768962471035,0.16853,2970.1,2968.8,2.82813588]
[1768962471236,0.31660215,2970.0,2968.8,2.82813588]
[1768962471538,0.31660215,2969.9,2968.8,2.82813588]
[1768962471737,0.16853,2970.1,2968.8,2.82813588]
[1768962471936,0.31663049,2970.0,2968.8,2.82813588]
[1768962472137,0.31663049,2969.9,2968.8,2.82813588]
[1768962472329,0.16853,2970.1,2968.8,2.82813588]
[1768962472530,0.31666112,2970.0,2968.8,2.82813588]
[1768962472730,0.31666112,2969.9,2968.8,2.82813588]
[1768962472930,0.16853,2970.1,2968.8,2.82813588]
[1768962473236,0.31666131,2970.0,2968.8,2.82813588]
[1768962473435,0.31666131,2969.9,2968.8,2.82813588]
[1768962473639,0.16854,2970.0,2968.8,2.82813588]
[1768962473938,0.31666774,2969.9,2968.8,2.82813588]
[1768962474138,0.16854,2970.0,2968.8,2.82813588]
[1768962474330,0.31666025,2969.9,2968.8,2.82813588]
[1768962474532,6.52636101,2970.5,2968.8,0.42165715]
[1768962474533,0.31663871,2969.8,2968.8,0.42165715]
[1768962474837,0.40364116,2970.4,2968.8,0.42165715]
[1768962474838,1.0909463,2970.0,2968.8,0.42165715]
[1768962475038,0.16855,2969.8,2968.8,0.42165715]
[1768962475739,1.0909463,2970.0,2968.5,2.82813588]
[1768962475740,0.4851964,2969.7,2968.5,2.82813588]
[1768962475938,0.16856,2969.7,2968.5,2.82813588]
[1768962477139,0.16856,2969.7,2968.5,0.42165715]
[1768962477632,0.3166074,2969.6,2968.5,0.42165715]
[1768962477836,0.16856,2969.7,2968.5,0.42165715]
[1768962478038,0.31661137,2969.6,2968.5,0.42165715]
[1768962478237,0.16856,2969.7,2968.5,0.42165715]
[1768962478437,0.31658768,2969.6,2968.5,0.42165715]
[1768962478637,0.16856,2969.7,2968.5,0.42165715]
[1768962478838,0.31658788,2969.6,2968.5,0.42165715]
[1768962479034,0.16856,2969.7,2968.5,0.42165715]
[1768962479225,0.31658829,2969.6,2968.5,0.42165715]
[1768962479431,0.16856,2969.7,2968.5,0.42165715]
[1768962479633,0.31657177,2969.6,2968.5,0.42165715]
[1768962479835,0.16856,2969.7,2968.5,0.42165715]
[1768962480138,0.31657473,2969.6,2968.5,0.42165715]
[1768962480338,0.31657473,2969.5,2968.5,0.42165715]
[1768962480537,0.16856,2969.7,2968.5,0.42165715]
[1768962480735,0.31656763,2969.6,2968.5,0.42165715]
[1768962480936,0.31656763,2969.5,2968.5,0.42165715]
[1768962481136,0.16856,2969.7,2968.5,0.42165715]
[1768962481334,0.31656313,2969.6,2968.5,0.42165715]
[1768962481638,0.16856,2969.7,2968.5,0.42165715]
[1768962481836,1.0909463,2970.3,2968.5,0.42165715]
[1768962482033,0.85644196,2970.2,2968.5,0.42165715]
[1768962482230,0.85644196,2970.1,2968.5,0.42165715]
[1768962482435,0.16854,2970.0,2968.5,0.42165715]
[1768962484647,0.16854,2969.9,2968.5,0.42165715]
[1768962485745,0.42636101,2969.8,2968.3,2.40647873]
[1768962486946,1.09098269,2969.5,2968.3,2.40647873]
[1768962490842,1.09098269,2969.1,2968.2,2.40647873]
[1768962491247,1.09098269,2969.1,2968.1,2.83214022]
[1768962491438,1.09098269,2968.9,2968.1,0.00400434]
[1768962492046,1.09098269,2968.7,2968.1,0.00400434]
[1768962492344,1.09098269,2968.7,2967.7,0.42165715]
[1768962493149,1.09098269,2968.5,2967.7,0.00423342]
[1768962493360,1.09098269,2967.8,2967.2,3.00809841]
[1768962493545,1.09098269,2967.8,2966.9,3.00809841]
[1768962493745,1.09098269,2968.2,2966.9,1.51263984]
[1768962494542,1.09098269,2968.2,2966.9,1.51574386]
[1768962495246,1.09098269,2968.3,2966.9,0.37101937]
[1768962495450,1.09098269,2968.3,2967.0,1.09098269]
[1768962496446,1.09098269,2967.9,2966.9,0.00310402]
[1768962501644,1.09098269,2967.7,2966.9,0.00310402]
[1768962501853,1.09098269,2967.5,2966.2,1.09098269]
[1768962502356,1.09098269,2967.5,2966.2,3.50450479]
[1768962502758,1.09098269,2967.5,2966.2,3.50809562]
[1768962503058,1.09098269,2967.5,2966.4,2.4135221]
[1768962503260,1.09098269,2967.5,2966.3,2.4135221]
[1768962503958,1.09098269,2967.5,2966.2,1.09457352]
[1768962503959,1.09098269,2967.3,2966.2,0.00359083]
[1768962505855,0.16869,2967.4,2966.4,1.09098269]
[1768962506058,1.25967269,2967.4,2966.2,1.09457352]
[1768962506357,1.25967269,2967.4,2966.2,0.00359083]
[1768962506549,1.09098269,2967.0,2966.2,0.00359083]
[1768962509965,1.61807333,2967.0,2966.2,0.00049756]
[1768962510768,1.09098269,2966.6,2965.3,1.09098269]
[1768962511259,1.09098269,2966.4,2965.1,2.78143745]
[1768962511562,1.09098269,2966.2,2965.0,0.16882]
[1768962511762,1.09334334,2966.2,2965.0,1.26286523]
[1768962512455,0.00236065,2966.2,2965.0,1.26286523]
[1768962514966,0.00236065,2966.2,2965.4,1.09098269]
[1768962517263,0.00236065,2966.2,2965.2,1.09098269]
[1768962518162,0.00236065,2966.2,2965.0,1.26286523]
[1768962518366,1.45172398,2966.2,2965.0,0.00306254]
[1768962518769,0.35838064,2966.1,2965.0,0.00306254]
[1768962518966,1.09098269,2965.8,2965.0,0.00306254]
[1768962519172,0.16877,2966.0,2965.0,0.00306254]
[1768962519864,1.09098269,2965.8,2965.0,0.00306254]
[1768962520371,1.25975269,2966.0,2965.0,0.00306254]
[1768962521368,0.00236065,2966.2,2965.1,1.09098269]
[1768962522270,0.00236065,2966.2,2965.5,1.09098269]
[1768962522476,0.00236065,2966.2,2965.3,1.09098269]
[1768962524175,0.00236065,2966.2,2965.5,1.09098269]
[1768962524583,0.35838064,2966.7,2965.5,1.09098269]
[1768962524985,1.09098269,2966.6,2965.3,1.09098269]
[1768962525183,1.36305101,2966.6,2965.3,1.09098269]
[1768962525584,0.27206832,2966.5,2965.3,1.09098269]
[1768962527287,1.09432777,2966.6,2965.3,1.09098269]
[1768962527884,1.09432777,2966.6,2965.5,1.09098269]
[1768962528086,0.00334508,2966.6,2965.8,1.09098269]
[1768962528287,0.00334508,2966.6,2965.4,1.09098269]
[1768962528687,0.00334508,2966.6,2965.6,1.09098269]
[1768962529084,0.00334508,2966.6,2965.8,1.09098269]
[1768962529290,0.00334508,2966.6,2966.0,1.09098269]
[1768962529683,1.09098269,2967.1,2966.0,1.09098269]
[1768962529879,1.36305101,2967.3,2966.0,1.09098269]
[1768962530687,1.36305101,2967.1,2965.8,1.09098269]
[1768962530892,1.09098269,2966.5,2965.4,2.4135221]
[1768962531090,1.09098269,2966.5,2965.3,0.1688]
[1768962531487,1.09098269,2966.7,2965.4,3.50450479]
[1768962531691,0.27206832,2966.8,2965.6,1.09098269]
[1768962533594,0.27206832,2966.8,2965.6,3.50450479]
[1768962533784,0.16871,2967.0,2965.8,1.09098269]
[1768962533989,0.16871,2967.0,2966.0,1.09098269]
[1768962535987,0.27206832,2967.2,2966.2,1.09098269]
[1768962537283,0.0040206,2967.3,2966.5,1.09098269]
[1768962538489,1.53171101,2967.9,2966.5,1.09098269]
[1768962538792,0.31362349,2967.8,2966.5,1.09098269]
[1768962538997,0.31362349,2967.7,2966.5,1.09098269]
[1768962539196,7.63171101,2967.9,2966.5,1.09098269]
[1768962539388,0.31366345,2967.8,2966.5,1.09098269]
[1768962539590,0.31366345,2967.7,2966.5,1.09098269]
[1768962539789,0.00314651,2967.8,2966.5,1.09098269]
[1768962539994,0.31356464,2967.7,2966.5,1.09098269]
[1768962540188,0.00314651,2967.8,2966.5,1.09098269]
[1768962541799,0.27521483,2967.8,2966.5,1.09098269]
[1768962548696,0.27521483,2967.8,2966.7,1.09098269]
[1768962548902,0.27521483,2967.8,2966.4,1.909]
[1768962549604,0.00314651,2967.8,2966.6,3.77994566]
[1768962549799,0.00314651,2967.8,2966.7,0.27428907]
[1768962551107,0.00314651,2967.8,2966.7,2.68781117]
[1768962555109,0.00314651,2967.8,2966.7,0.27428907]
[1768962556612,0.00314651,2967.8,2966.8,1.91]
[1768962561916,0.00314651,2967.8,2966.9,1.34230161]
[1768962562116,0.16864,2968.3,2966.9,3.75582371]
[1768962562318,0.16864,2968.3,2966.9,1.34230161]
[1768962562617,0.16864,2968.3,2966.9,3.75582371]
[1768962563010,0.41466462,2968.3,2966.9,2.4135221]
[1768962563210,0.24196617,2968.2,2966.8,4.3235221]
[1768962564115,0.24196617,2968.2,2966.9,2.4135221]
[1768962565119,0.24196617,2968.2,2967.2,2.4135221]
[1768962565308,0.24196617,2968.2,2967.2,2.4160736]
[1768962573630,0.24196617,2968.2,2967.2,4.3300736]
[1768962576035,0.17269845,2968.3,2967.2,4.3300736]
[1768962576236,0.17269845,2968.3,2967.3,2.4135221]
[1768962576437,0.31451421,2968.2,2967.3,2.4135221]
[1768962576739,0.17269845,2968.3,2967.3,2.4135221]
[1768962577035,0.31451436,2968.2,2967.3,2.4135221]
[1768962577236,0.24196617,2968.2,2967.3,2.4135221]
[1768962578538,0.24196617,2967.7,2966.8,3.00809841]
[1768962578734,0.24196617,2967.7,2966.6,3.00809841]
[1768962578934,0.24196617,2967.7,2966.6,4.92409841]
[1768962579245,0.24196617,2967.7,2966.6,1.916]
[1768962579537,0.24196617,2967.7,2966.6,1.91995208]
[1768962579746,0.24196617,2967.7,2966.6,0.00395208]
[1768962579939,0.24196617,2967.5,2966.6,0.00395208]
[1768962581947,0.41064617,2967.5,2966.6,0.00395208]
[1768962582251,0.24196617,2967.4,2966.6,0.00395208]
[1768962588051,0.16868,2967.5,2966.6,0.00395208]
[1768962589652,0.21060061,2967.4,2966.6,0.00395208]
[1768962591055,0.21060061,2967.3,2966.6,0.00395208]
[1768962591247,0.21060061,2967.3,2966.6,0.00279653]
[1768962593152,0.21060061,2967.3,2965.5,4.32174344]
[1768962593451,0.21060061,2967.3,2965.7,1.916]
[1768962594150,0.21060061,2967.3,2965.7,1.92035106]
[1768962596356,0.21060061,2967.3,2965.7,2.1418616]
[1768962599554,0.21060061,2967.2,2965.7,2.1418616]
[1768962599854,0.21060061,2967.2,2965.7,0.2258616]
[1768962600053,0.21060061,2967.2,2965.8,1.916]
[1768962600760,0.37930061,2967.2,2965.8,1.916]
[1768962603359,0.37930061,2967.2,2965.9,2.13851054]
[1768962603360,0.1687,2967.2,2965.9,2.13851054]
[1768962603664,0.1687,2967.2,2966.0,0.22151054]
[1768962604055,0.21060061,2967.6,2966.0,0.22151054]
[1768962604256,0.16866,2967.8,2966.2,1.31364503]
[1768962604463,0.16866,2967.8,2966.3,0.22151054]
[1768962604464,0.31398086,2967.7,2966.3,0.22151054]
[1768962604667,0.16866,2967.8,2966.3,0.22151054]
[1768962604960,0.16866,2967.8,2966.4,1.917]
[1768962604961,0.37926061,2967.8,2966.4,1.917]
[1768962605161,0.21060061,2967.6,2966.2,3.00809841]
[1768962605358,0.00405845,2968.3,2966.1,3.00809841]
[1768962605359,0.21060061,2967.3,2966.1,3.00809841]
[1768962605555,0.21060061,2967.3,2966.0,1.917]
[1768962605760,0.37929061,2967.3,2966.0,1.917]
[1768962606454,0.37929061,2967.3,2966.1,1.917]
[1768962606654,0.37929061,2967.3,2966.0,1.917]
[1768962606862,0.21060061,2967.1,2965.9,3.00809841]
[1768962607063,0.21060061,2967.1,2965.7,7.22121259]
[1768962607362,0.21060061,2967.1,2965.7,3.01244947]
[1768962607551,0.21060061,2967.1,2965.7,0.00435106]
[1768962607755,0.37931061,2967.1,2965.7,0.00435106]
[1768962607959,0.21060061,2966.9,2965.7,0.00435106]
[1768962610163,0.16871,2967.1,2965.7,0.00435106]
[1768962610465,0.31452581,2967.0,2965.7,0.00435106]
[1768962610665,0.31452581,2966.9,2965.7,0.00435106]
[1768962610861,1.26141925,2967.1,2965.8,1.09270925]
[1768962611058,0.31452802,2967.0,2965.8,1.09270925]
[1768962611260,0.31452802,2966.9,2965.8,1.09270925]
[1768962611467,1.26141925,2967.1,2965.8,1.09270925]
[1768962611665,0.31452794,2967.0,2965.8,1.09270925]
[1768962611867,0.31452794,2966.9,2965.8,1.09270925]
[1768962612067,1.26141925,2967.1,2965.8,1.09270925]
[1768962612269,0.31452717,2967.0,2965.8,1.09270925]
[1768962612461,1.26141925,2967.1,2965.8,1.09270925]
[1768962612661,0.31450027,2967.0,2965.8,1.09270925]
[1768962612861,0.3144989,2966.9,2965.8,1.09270925]
[1768962613062,1.26141925,2967.1,2965.8,1.09270925]
[1768962613378,0.31449977,2967.0,2965.8,1.09270925]
[1768962613665,1.26141925,2967.1,2965.8,1.09270925]
[1768962613865,0.31447976,2967.0,2965.8,1.09270925]
[1768962614065,1.26141925,2967.1,2965.8,1.09270925]
[1768962614255,0.31448737,2967.0,2965.8,1.09270925]
[1768962614460,0.31448737,2966.9,2965.8,1.09270925]
[1768962614661,1.47201986,2967.1,2965.8,1.09270925]
[1768962614859,0.31446418,2967.0,2965.8,1.09270925]
[1768962615058,1.47201986,2967.1,2965.8,1.09270925]
[1768962615365,0.31446416,2967.0,2965.8,1.09270925]
[1768962615564,1.09270925,2966.3,2965.7,0.00435106]
[1768962615762,1.09270925,2966.1,2965.7,0.00435106]
[1768962615971,0.00348763,2966.1,2965.1,3.00809841]
[1768962616968,0.00348763,2966.1,2965.1,3.01214955]
[1768962617769,0.00348763,2966.1,2965.1,0.00405114]
[1768962619075,1.09270925,2965.9,2965.1,0.00405114]
[1768962619268,1.09270925,2965.7,2965.1,0.00405114]
[1768962619467,1.09270925,2965.5,2964.5,3.00809841]
[1768962619676,1.09270925,2965.1,2964.1,7.21686153]
[1768962619867,1.09270925,2965.1,2964.0,3.00809841]
[1768962620066,1.09270925,2965.1,2964.0,1.918]
[1768962620271,1.29170212,2965.3,2964.0,3.01070925]
[1768962620473,1.09270925,2965.1,2964.0,0.00416583]
[1768962620883,1.09270925,2964.9,2964.0,0.00416583]
[1768962621582,1.09270925,2964.7,2964.0,0.00416583]
[1768962621880,1.09270925,2964.7,2964.0,0.00190211]
[1768962622382,1.29170212,2964.7,2964.0,0.00190211]
[1768962622880,0.19899287,2964.4,2964.0,0.00190211]
[1768962623078,1.09270925,2965.1,2964.0,1.09461136]
[1768962623380,1.29170212,2965.1,2964.0,1.09461136]
[1768962623581,0.19899287,2965.0,2964.0,1.09461136]
[1768962623782,0.19899287,2965.0,2964.0,0.00190211]
[1768962626482,1.29170212,2964.9,2964.0,0.00190211]
[1768962626879,0.19899287,2964.8,2964.0,0.00190211]
[1768962627086,1.29170212,2964.7,2964.0,0.00190211]
[1768962628474,1.09270925,2964.9,2964.0,0.00190211]
[1768962628677,1.26152925,2965.1,2964.0,0.00190211]
[1768962628877,1.46052212,2965.1,2964.0,0.00190211]
[1768962629186,1.29170212,2964.2,2962.9,1.09270925]
[1768962630085,1.29170212,2964.2,2962.9,1.09648135]
[1768962630384,0.19899287,2964.1,2962.9,1.09648135]
[1768962630586,0.19899287,2964.1,2963.1,1.09270925]
[1768962630784,1.09270925,2964.4,2963.1,1.09270925]
[1768962631180,1.09270925,2964.4,2963.3,1.09270925]
[1768962631582,0.36784287,2964.5,2963.5,1.09270925]
[1768962631785,0.36784287,2964.5,2963.3,1.09270925]
[1768962632581,1.09270925,2963.6,2962.9,0.0037721]
[1768962632883,0.00247285,2963.6,2962.9,0.0037721]
[1768962633277,0.16887,2964.2,2963.0,1.09270925]
[1768962633489,0.19899287,2964.3,2963.2,1.09270925]
[1768962634391,0.20292001,2964.3,2963.2,1.09270925]
[1768962638996,0.00392714,2964.3,2963.2,1.09270925]
[1768962640391,0.20292001,2964.3,2962.9,0.0037721]
[1768962640592,0.20292001,2964.3,2963.1,1.09270925]
[1768962643294,0.00392714,2964.3,2963.1,1.09270925]
[1768962643502,0.00392714,2964.3,2963.7,1.09270925]
[1768962643689,1.09270925,2965.0,2963.7,1.09270925]
[1768962644700,1.09691574,2965.0,2963.7,1.09270925]
[1768962646800,0.00420649,2965.0,2963.9,1.09270925]
[1768962647201,0.00420649,2965.0,2964.3,1.09270925]
[1768962647400,0.00420649,2965.0,2964.5,1.09270925]
[1768962647599,0.17302999,2965.5,2964.3,1.09270925]
[1768962648694,0.17302999,2965.5,2964.5,1.09270925]
[1768962648695,0.17729234,2965.5,2964.5,1.09270925]
[1768962649098,0.00426235,2965.5,2964.5,1.09270925]
[1768962651592,1.0969716,2965.5,2964.3,1.09270925]
[1768962652406,1.09270925,2965.1,2964.0,2.41838587]
[1768962652604,1.26573924,2964.7,2963.4,2.41838587]
[1768962653005,1.09270925,2964.9,2963.7,1.09270925]
[1768962653202,1.26573924,2965.1,2963.7,1.09270925]
[1768962654098,1.26573924,2965.1,2963.9,1.09270925]
[1768962654499,0.17302999,2965.1,2964.1,1.09270925]
[1768962654701,0.16882,2965.2,2964.3,1.09270925]
[1768962655098,0.16882,2965.2,2963.8,1.09270925]
[1768962655099,1.09270925,2965.1,2963.8,1.09270925]
[1768962655399,1.09270925,2964.7,2963.5,8.97600512]
[1768962655701,1.09270925,2964.7,2963.5,1.09270925]
[1768962658207,1.09270925,2964.9,2963.5,1.09270925]
[1768962659908,1.09270925,2964.9,2963.7,1.09270925]
[1768962660408,1.43455924,2965.1,2963.7,1.09270925]
[1768962660605,0.34184999,2965.1,2963.9,1.09270925]
[1768962660797,0.17729234,2965.5,2964.3,1.09270925]
[1768962661004,1.26573924,2965.1,2963.9,1.09270925]
[1768962661405,1.09270925,2965.3,2964.1,1.09270925]
[1768962662007,1.26573924,2965.1,2963.9,1.09270925]
[1768962662205,1.26573924,2965.1,2963.7,5.43309512]
[1768962662604,1.26573924,2965.1,2963.8,2.41838587]
[1768962662806,1.09270925,2964.7,2963.7,2.41838587]
[1768962663109,1.09270925,2964.7,2963.5,1.09270925]
[1768962663310,0.17302999,2964.8,2963.5,1.09270925]
[1768962663502,0.16882,2965.1,2964.1,1.09270925]
[1768962664305,0.16882,2965.1,2963.9,1.09270925]
[1768962665210,1.43455924,2965.1,2963.7,1.09270925]
[1768962665515,1.09270925,2964.9,2963.7,1.09270925]
[1768962665706,1.09270925,2964.9,2963.7,3.51109512]
[1768962666107,1.26573924,2964.5,2963.6,2.41838587]
[1768962666306,1.26573924,2964.5,2963.3,2.41838587]
[1768962666505,1.26573924,2964.5,2963.2,3.51109512]
[1768962667102,0.17302999,2964.4,2963.2,3.51109512]
[1768962667414,1.26573924,2964.3,2963.2,1.09270925]
[1768962668217,0.17302999,2964.3,2963.2,1.09270925]
[1768962668418,1.09270925,2964.1,2963.0,2.41838587]
[1768962668721,0.17302999,2964.0,2962.9,2.42215797]
[1768962669207,0.16886,2964.4,2963.2,1.09270925]
[1768962669514,0.16886,2964.4,2962.9,2.42215797]
[1768962669515,0.16886,2964.4,2963.4,1.09270925]
[1768962670013,0.16886,2964.4,2963.0,2.41838587]
[1768962670014,0.16886,2964.4,2963.2,1.09270925]
[1768962670918,0.16886,2964.4,2963.0,2.41838587]
[1768962671617,0.17302999,2964.5,2963.0,2.41838587]
[1768962671811,0.17302999,2964.5,2963.1,2.41838587]
[1768962672018,0.17302999,2964.5,2963.0,2.41838587]
[1768962672518,0.17302999,2964.5,2963.1,2.41838587]
[1768962675316,0.17135088,2964.4,2963.0,2.41838587]
[1768962675617,0.17135088,2964.3,2962.9,2.42215797]
[1768962676120,0.17135088,2964.3,2962.9,0.0037721]
[1768962676310,0.17135088,2964.3,2962.9,2.42215797]
[1768962680516,0.16886,2964.4,2963.0,2.41838587]
[1768962683327,0.17135088,2964.3,2963.0,2.41838587]
[1768962685215,0.17135088,2964.3,2963.1,2.41838587]
[1768962685416,0.17135088,2964.3,2963.2,2.41838587]
[1768962685813,0.17135088,2964.3,2962.9,4.93487051]
[1768962685814,0.17135088,2964.2,2963.1,2.41838587]
[1768962686018,0.17135088,2964.2,2962.9,3.01187051]
[1768962686019,0.17135088,2963.9,2962.9,0.0037721]
[1768962689523,0.17135088,2963.9,2962.4,2.41838587]
[1768962689524,0.17135088,2963.6,2962.4,2.41838587]
[1768962689721,0.17135088,2963.6,2962.3,4.34138587]
[1768962689924,0.17135088,2963.6,2962.3,1.923]
[1768962690131,0.17135088,2963.6,2962.2,2.41838587]
[1768962690427,0.17135088,2963.5,2962.2,0.00415303]
[1768962691333,0.17135088,2963.2,2962.2,0.00415303]
[1768962691533,0.17135088,2963.0,2962.2,0.00415303]
[1768962692128,0.17135088,2962.9,2962.2,0.00415303]
[1768962692628,6.27135088,2962.9,2962.2,0.00415303]
[1768962693332,0.17135088,2962.9,2962.2,0.00415303]
[1768962694234,0.17135088,2962.9,2961.5,2.41838587]
[1768962695125,0.00367202,2963.2,2961.9,0.16870269]
[1768962695329,0.00367202,2963.2,2962.1,2.41838587]
[1768962695633,0.17135088,2963.8,2962.1,2.58708856]
[1768962695939,0.17135088,2963.8,2962.2,2.41838587]
[1768962696522,0.17510985,2963.8,2962.1,2.41838587]
[1768962696727,0.17135088,2963.7,2962.1,2.41838587]
[1768962697029,0.17135088,2963.7,2962.0,2.58737587]
[1768962697225,0.17135088,2963.6,2962.0,2.41838587]
[1768962701134,0.00375897,2963.8,2962.1,2.58708856]
[1768962701332,0.00375897,2963.8,2962.3,2.41838587]
[1768962701936,0.17510985,2963.8,2962.2,2.41838587]
[1768962702130,0.17135088,2963.7,2962.2,2.41838587]
[1768962702330,0.17135088,2963.6,2962.0,2.41838587]
[1768962702530,0.34026088,2963.5,2961.9,2.41838587]
[1768962702732,0.00375897,2963.8,2961.7,2.41838587]
[1768962702733,0.17135088,2963.3,2961.7,2.41838587]
[1768962702939,0.17135088,2963.3,2961.6,2.41838587]
[1768962703634,0.17135088,2963.3,2961.6,2.58708856]
[1768962703827,0.17135088,2963.3,2961.7,2.41838587]
[1768962704230,0.16892,2963.4,2961.8,0.16870269]
[1768962704529,0.16892,2963.4,2961.8,2.58708856]
[1768962704724,6.27135088,2963.7,2961.9,0.169]
[1768962704929,0.17135088,2963.7,2962.0,2.41838587]
[1768962705130,0.17135088,2963.7,2962.1,2.41838587]
[1768962705941,0.17135088,2963.7,2962.2,2.41838587]
[1768962707831,0.16098698,2963.5,2962.1,2.41838587]
[1768962708032,0.16098698,2963.5,2962.0,2.41838587]
[1768962708338,0.16098698,2963.5,2962.1,2.41838587]
[1768962710138,0.16098698,2963.5,2962.2,2.41838587]
[1768962712134,0.16098698,2963.5,2962.1,2.41838587]
[1768962712743,0.16098698,2963.5,2962.2,2.41838587]
[1768962714244,0.16098698,2963.5,2962.3,2.41838587]
[1768962716945,0.16098698,2963.5,2962.0,3.00809841]
[1768962718452,0.16098698,2963.5,2962.1,3.00809841]
[1768962719249,0.32989698,2963.5,2962.1,3.00809841]
[1768962719547,0.00375897,2963.8,2962.0,3.00809841]
[1768962719548,0.16098698,2963.3,2962.0,3.00809841]
[1768962719741,0.16098698,2963.3,2961.9,3.00809841]
[1768962720050,0.16891,2963.4,2961.9,3.00809841]
[1768962721445,0.16891,2963.4,2962.0,3.15472834]
[1768962724949,0.16891,2963.4,2961.7,4.20876312]
[1768962724950,0.00375897,2963.8,2962.1,0.31396652]
[1768962725154,0.00375897,2963.8,2962.3,0.14413775]
[1768962728254,0.16098698,2963.7,2962.2,3.00809841]
[1768962728656,0.16098698,2963.7,2962.1,3.17708841]
[1768962729351,0.16098698,2963.7,2962.1,3.31977916]
[1768962729556,0.17264897,2963.8,2962.3,0.14269075]
[1768962730057,0.17264897,2963.8,2962.4,0.14269075]
[1768962731158,0.00375897,2963.8,2962.7,0.14166225]
[1768962732061,0.16886,2964.4,2962.8,0.14166225]
[1768962733152,0.17189726,2964.4,2962.8,0.14166225]
[1768962735056,0.17189726,2964.4,2963.0,3.00809841]
[1768962735254,0.17189726,2964.4,2962.9,3.00809841]
[1768962736664,0.32357042,2964.4,2962.9,3.00809841]
[1768962739164,0.32357042,2964.4,2962.8,5.07276066]
[1768962739366,0.32357042,2964.4,2962.8,3.14976066]
[1768962739566,0.32357042,2964.4,2962.8,5.07276066]
[1768962739761,0.15167316,2964.1,2962.8,4.93109841]
[1768962739969,0.15167316,2964.0,2962.8,3.00809841]
[1768962740164,0.15167316,2964.0,2962.7,3.00809841]
[1768962740469,0.15167316,2963.9,2962.5,3.00809841]
[1768962740767,0.15167316,2963.9,2962.4,3.00809841]
[1768962743069,0.15167316,2963.9,2962.3,3.00809841]
[1768962743454,0.15167316,2963.9,2962.3,3.14074403]
[1768962745263,0.16888,2964.0,2962.4,3.14168319]
[1768962745461,0.16888,2964.0,2962.5,0.13358478]
[1768962746567,0.32055316,2964.0,2962.4,3.00809841]
[1768962746770,0.15167316,2963.9,2962.5,1.925]
[1768962747070,1.24672661,2963.9,2962.6,1.09505345]
[1768962749173,0.15167316,2963.9,2962.8,1.09505345]
[1768962751869,0.16888,2964.0,2963.0,1.09505345]
[1768962752069,0.16888,2964.0,2962.6,3.00809841]
[1768962752070,1.24672661,2963.9,2962.7,1.09505345]
[1768962753978,1.24672661,2963.9,2962.7,4.10315186]
[1768962754179,1.24672661,2964.3,2963.1,1.09505345]
[1768962754380,0.31338814,2964.2,2963.1,1.09505345]
[1768962754681,0.00303726,2964.4,2963.1,3.52358459]
[1768962754882,0.31341228,2964.3,2963.3,1.09505345]
[1768962755078,0.00303726,2964.4,2963.5,1.09505345]
[1768962755481,0.00303726,2964.4,2963.3,3.52358459]
[1768962757182,0.00303726,2964.4,2963.5,3.52358459]
[1768962757375,0.00303726,2964.4,2963.6,2.42853114]
[1768962757687,0.00303726,2964.4,2963.6,2.43231424]
[1768962757880,0.15167316,2964.7,2963.6,2.43231424]
[1768962757881,1.41554661,2965.1,2963.9,1.09505345]
[1768962758180,0.31348004,2965.0,2963.9,1.09505345]
[1768962758384,7.51554661,2965.1,2963.9,1.09505345]
[1768962758586,0.31339916,2965.0,2963.9,1.09505345]
[1768962758886,1.09505345,2965.3,2964.0,2.42853114]
[1768962759081,1.09505345,2965.1,2964.0,2.42853114]
[1768962760086,1.09505345,2965.1,2963.9,3.52358459]
[1768962760492,1.09505345,2964.9,2963.9,2.42853114]
[1768962760788,1.24672661,2964.9,2963.9,2.42853114]
[1768962762789,1.09505345,2964.3,2963.8,2.42853114]
[1768962763086,1.09505345,2964.3,2963.6,0.0037831]
[1768962763687,1.24672661,2964.3,2963.6,0.0037831]
[1768962764281,0.15167316,2964.3,2963.6,0.0037831]
[1768962764679,0.32051316,2964.7,2963.6,0.0037831]
[1768962765689,0.32051316,2964.7,2963.7,1.09505345]
[1768962766983,0.32051316,2964.7,2963.6,0.0037831]
[1768962769087,0.1459986,2965.2,2963.6,0.0037831]
[1768962769396,0.3148086,2965.2,2963.6,0.0037831]
[1768962769591,0.1459986,2965.1,2963.6,0.0037831]
[1768962769791,0.1459986,2965.0,2963.6,0.0037831]
[1768962770888,0.1459986,2964.9,2963.6,0.0037831]
[1768962780406,0.1459986,2964.9,2963.6,3.01188151]
[1768962780906,0.14982643,2965.3,2963.6,3.18078151]
[1768962781108,0.14982643,2965.3,2963.8,3.00809841]
[1768962783100,0.14982643,2965.3,2963.9,3.00809841]
[1768962785606,0.14982643,2965.3,2963.8,3.00809841]
[1768962786506,0.14982643,2965.3,2963.9,0.16888]
[1768962786711,0.14982643,2965.3,2964.1,3.00809841]
[1768962787108,0.00382783,2965.3,2964.1,3.12130946]
[1768962787501,0.00382783,2965.3,2964.3,0.16886]
[1768962787708,0.1459986,2966.1,2964.5,3.00809841]
[1768962787906,0.3135678,2966.0,2964.5,3.00809841]
[1768962788108,0.1459986,2966.1,2964.5,3.00809841]
[1768962788307,0.45956348,2966.0,2964.4,3.00809841]
[1768962788507,0.1459986,2966.0,2964.4,3.00809841]
[1768962788708,0.14963095,2966.0,2964.4,3.00809841]
[1768962789017,0.1459986,2965.9,2964.7,1.09351044]
[1768962793019,0.1459986,2965.9,2964.3,4.27043853]